fUST/lending_fUST_20260623
["ID","MTS","AMOUNT","RATE_DAILY","PERIOD"]
[426154790,1782186639000,-276.305848,0.00017936,2]
[426154788,1782186639000,-263.86,0.00017685,2]
[426154794,1782186639000,-152.29364072,0.00018932,2]
[426154804,1782186639000,-4784.68557449,0.000195,2]
[426154801,1782186639000,-35884.07323393,0.000195,2]
[426154800,1782186639000,-25352.08039526,0.000195,2]
[426154803,1782186639000,-6341.96856784,0.000195,2]
[426154802,1782186639000,-2834.47737953,0.000195,2]
[426154797,1782186639000,-1714.3606063,0.00019499,2]
[426154795,1782186639000,-500.0,0.00019499,2]
[426154792,1782186639000,-171.66,0.00018786,2]
[426154799,1782186639000,-2760.3432514,0.000195,2]
[426154791,1782186639000,-164.5,0.00018188,2]
[426154811,1782186644000,-4687.97517867,0.000195,2]
[426154812,1782186644000,-720.0,0.000195,2]
[426154810,1782186644000,-8723.20172005,0.000195,2]
[426154815,1782186647000,-276939.86381106,0.000195,2]
[426154818,1782186647000,-15153.41318504,0.000195,2]
[426154817,1782186647000,-12477.8732666,0.000195,2]
[426154816,1782186647000,-8295.31891492,0.000195,2]
[426154820,1782186745000,217.81665033,0.00023087,120]
[426154824,1782186864000,217.81665032,0.00023087,120]
[426154846,1782187254000,-2217.68933227,0.00011385,13]
[426154852,1782187577000,446.59,0.00023083,120]
[426154854,1782187578000,446.59,0.00023083,120]
[426154853,1782187578000,446.59,0.00023083,120]
[426154856,1782187579000,446.59,0.00023083,120]
[426154855,1782187579000,446.59,0.00023083,120]
[426154858,1782187580000,446.6,0.00023083,120]
[426154857,1782187580000,446.6,0.00023083,120]
[426154859,1782187581000,446.6,0.00023083,120]
[426154902,1782187831000,-3287.8196693,0.00011158,13]
[426154905,1782187831000,-347.40379286,0.00011158,13]
[426154907,1782187831000,-187.2324512,0.000115,2]
[426154919,1782187831000,-300.0,0.00011799,2]
[426154909,1782187831000,-394.19682839,0.000115,2]
[426154924,1782187831000,-2750.0,0.000118,5]
[426154915,1782187831000,-252.09767564,0.00011799,2]
[426154926,1782187831000,-2926.47488186,0.000118,5]
[426154917,1782187831000,-586.84770241,0.00011799,2]
[426154911,1782187831000,-147.62174531,0.00011799,2]
[426154913,1782187831000,-352.37825469,0.00011799,2]
[426154929,1782187831000,-692.80529833,0.000118,5]
[426154931,1782187831000,-12785.42347687,0.000118,5]
[426154921,1782187831000,-718.73554858,0.000118,5]
[426155082,1782187838000,-502.12244304,0.00016438,2]
[426155073,1782187838000,-500.0,0.00016438,2]
[426155071,1782187838000,-5278.5198898,0.00015053,2]
[426155081,1782187838000,-500.0,0.00016438,2]
[426155079,1782187838000,-500.0,0.00016438,2]
[426155075,1782187838000,-500.0,0.00016438,2]
[426155068,1782187838000,-151.0,0.00014991,2]
[426155080,1782187838000,-500.0,0.00016438,2]
[426155077,1782187838000,-500.0,0.00016438,2]
[426155074,1782187838000,-500.0,0.00016438,2]
[426155067,1782187838000,-151.0,0.00014991,2]
[426155069,1782187838000,-288.68445935,0.00014991,2]
[426155065,1782187838000,-151.0,0.00014991,2]
[426155064,1782187838000,-151.0,0.00014991,2]
[426155062,1782187838000,-151.0,0.00014991,2]
[426155063,1782187838000,-151.0,0.00014991,2]
[426155058,1782187838000,-459.4515825,0.00011925,2]
[426155061,1782187838000,-276.3058497,0.00013699,2]
[426155070,1782187838000,-9247.67089782,0.00015,2]
[426155060,1782187838000,-284.11403112,0.000125,2]
[426155055,1782187838000,-15463.57914573,0.000118,5]
[426155057,1782187838000,-5684.33081289,0.000118,5]
[426155066,1782187838000,-151.0,0.00014991,2]
[426155078,1782187838000,-500.0,0.00016438,2]
[426155072,1782187838000,-500.0,0.00016438,2]
[426155094,1782187838000,-500.0,0.00016712,2]
[426155076,1782187838000,-500.0,0.00016438,2]
[426155107,1782187838000,-472.00681056,0.00018276,2]
[426155106,1782187838000,-516.19,0.00018082,2]
[426155101,1782187838000,-516.19,0.0001726,2]
[426155105,1782187838000,-516.19,0.00017808,2]
[426155104,1782187838000,-516.19,0.00017534,2]
[426155100,1782187838000,-484.49,0.00016986,2]
[426155096,1782187838000,-500.0,0.00016712,2]
[426155103,1782187838000,-519.75553046,0.00017533,2]
[426155099,1782187838000,-516.19,0.00016986,2]
[426155097,1782187838000,-500.0,0.00016712,2]
[426155098,1782187838000,-500.0,0.00016712,2]
[426155102,1782187838000,-350.39307337,0.00017533,2]
[426155089,1782187838000,-500.0,0.00016438,2]
[426155095,1782187838000,-516.19,0.00016712,2]
[426155083,1782187838000,-500.0,0.00016438,2]
[426155087,1782187838000,-500.0,0.00016438,2]
[426155086,1782187838000,-500.0,0.00016438,2]
[426155085,1782187838000,-500.0,0.00016438,2]
[426155084,1782187838000,-516.19,0.00016438,2]
[426155090,1782187838000,-500.0,0.00016438,2]
[426155092,1782187838000,-500.0,0.00016712,2]
[426155091,1782187838000,-500.0,0.00016712,2]
[426155093,1782187838000,-500.0,0.00016712,2]
[426155088,1782187838000,-500.0,0.00016438,2]
[426155134,1782187843000,-947.51739434,0.00018276,2]
[426155135,1782187843000,-516.19,0.00018356,2]
[426155141,1782187843000,-189.83237725,0.000197,2]
[426155140,1782187843000,-516.19,0.00019452,2]
[426155139,1782187843000,-516.19,0.00019178,2]
[426155137,1782187843000,-257.65011246,0.00018791,2]
[426155143,1782187843000,-169.71736564,0.00019726,2]
[426155138,1782187843000,-516.19,0.00018904,2]
[426155142,1782187843000,-186.46233197,0.000197,2]
[426155146,1782187843000,-215.52736564,0.00019738,2]
[426155144,1782187843000,-346.47263436,0.00019726,2]
[426155145,1782187843000,-160.0,0.00019738,2]
[426155136,1782187843000,-516.19,0.0001863,2]
[426155197,1782187846000,-130.20910729,0.000199,2]
[426155192,1782187846000,-201.62736221,0.00019738,2]
[426155193,1782187846000,-160.0,0.00019738,2]
[426155199,1782187846000,-186.46233197,0.000199,2]
[426155195,1782187846000,-151.0,0.000198,2]
[426155198,1782187846000,-59.62326996,0.000199,2]
[426155204,1782187846000,-3069.44065081,0.0002,2]
[426155196,1782187846000,-600.0,0.00019889,2]
[426155200,1782187846000,-151.0,0.000199,2]
[426155201,1782187846000,-151.0,0.000199,2]
[426155203,1782187846000,-958.38048356,0.0002,2]
[426155194,1782187846000,-160.0,0.00019738,2]
[426155202,1782187846000,-325.08391451,0.00019969,2]
[426155208,1782188009000,9782.43021157,0.00023083,30]
[426155221,1782188545000,172.0,0.00020534,120]
[426155266,1782189031000,-1834.85239551,0.00015227,2]
[426155274,1782189032000,-2731.68949442,0.00015227,2]
[426155276,1782189032000,-2042.94937396,0.00015381,2]
[426155314,1782189038000,-189.83237725,0.000197,2]
[426155308,1782189038000,-195.98251876,0.00017852,2]
[426155311,1782189038000,-331.443358,0.00018813,2]
[426155303,1782189038000,-1000.0,0.00017234,2]
[426155309,1782189038000,-352.41576524,0.00017852,2]
[426155315,1782189038000,-186.46233198,0.000197,2]
[426155310,1782189038000,-420.0,0.00017963,2]
[426155307,1782189038000,-371.47215019,0.00017852,2]
[426155313,1782189038000,-331.443358,0.00019605,2]
[426155302,1782189038000,-209.139192,0.00017147,2]
[426155306,1782189038000,-206.57999677,0.00017852,2]
[426155304,1782189038000,-166.67038914,0.00017548,2]
[426155305,1782189038000,-199.33467848,0.00017548,2]
[426155301,1782189038000,-185.462779,0.00017061,2]
[426155299,1782189038000,-232.36077961,0.00016437,2]
[426155300,1782189038000,-500.65296676,0.00016438,2]
[426155298,1782189038000,-67.63922039,0.00016437,2]
[426155296,1782189038000,-704.220022,0.00015381,2]
[426155297,1782189038000,-2252.83060404,0.00015381,2]
[426155319,1782189038000,-218.07795489,0.00019726,2]
[426155312,1782189038000,-316.8,0.000189,2]
[426155323,1782189038000,-417.15472785,0.0001973,2]
[426155324,1782189038000,-160.0,0.0001973,2]
[426155320,1782189038000,-151.5,0.00019726,2]
[426155340,1782189038000,-738472.55745124,0.000198,2]
[426155339,1782189038000,-35367.97812811,0.000198,2]
[426155337,1782189038000,-179.45585116,0.00019799,2]
[426155338,1782189038000,-9473.61304255,0.000198,2]
[426155336,1782189038000,-627.1598455,0.00019799,2]
[426155332,1782189038000,-501.06665217,0.00019798,2]
[426155331,1782189038000,-287.11042227,0.00019798,2]
[426155328,1782189038000,-500.0,0.00019797,2]
[426155333,1782189038000,-150.4,0.00019799,2]
[426155335,1782189038000,-401.78408521,0.00019799,2]
[426155330,1782189038000,-520.0831218,0.00019798,2]
[426155334,1782189038000,-351.56107456,0.00019799,2]
[426155325,1782189038000,-160.0,0.0001973,2]
[426155316,1782189038000,-1500.06553053,0.000197,2]
[426155321,1782189038000,-202.74633563,0.00019726,2]
[426155317,1782189038000,-151.5,0.00019726,2]
[426155318,1782189038000,-151.5,0.00019726,2]
[426155326,1782189038000,-500.0,0.00019797,2]
[426155327,1782189038000,-500.0,0.00019797,2]
[426155329,1782189038000,-509.87088707,0.00019797,2]
[426155322,1782189038000,-160.0,0.0001973,2]
[426155345,1782189040000,-307.3228,0.000198,2]
[426155347,1782189043000,-500.0,0.000198,2]
[426155348,1782189043000,-287.41003066,0.000198,2]
[426155351,1782189046000,-491.92488302,0.000198,2]
[426155349,1782189046000,-346.11724188,0.00019799,2]
[426155350,1782189046000,-1573.00685827,0.000198,2]
[426155557,1782189196000,3509.0,0.0002,120]
[426155631,1782190232000,-289.92851023,0.00015454,14]
[426155635,1782190232000,-433.45811007,0.0001638,2]
[426155633,1782190232000,-544.50072531,0.0001638,2]
[426155861,1782190238000,-317.80002,0.0001638,2]
[426155862,1782190238000,-1278.12,0.0001638,2]
[426155890,1782190243000,-166.66666666,0.000195,2]
[426155891,1782190243000,-285.84523584,0.00019599,2]
[426155887,1782190243000,-209.139193,0.00018703,2]
[426155889,1782190243000,-1312.55733924,0.000195,2]
[426155886,1782190243000,-166.66666666,0.00018023,2]
[426155888,1782190243000,-180.70641026,0.00019178,2]
[426155885,1782190243000,-360.83039183,0.00016645,7]
[426155884,1782190243000,-166.66666668,0.00016545,2]
[426155883,1782190243000,-235.00568971,0.0001638,2]
[426155913,1782190465000,191.83678322,0.00023064,120]
[426155926,1782191089000,-151.0,0.00011172,13]
[426155927,1782191090000,-151.0,0.00011172,13]
[426155928,1782191092000,-151.0,0.00011172,13]
[426155942,1782191395000,1526.22124371,0.00023087,30]
[426155968,1782191438000,-156.0,0.00011285,2]
[426155969,1782191438000,-301.85923734,0.000115,2]
[426155967,1782191438000,-825.12,0.0001106,2]
[426155970,1782191438000,-181.2,0.0001173,7]
[426155972,1782191438000,-271.8,0.0001242,7]
[426155976,1782191438000,-249.28021286,0.0001589,7]
[426155975,1782191438000,-179.405217,0.00015068,2]
[426155973,1782191438000,-249.28021286,0.00014646,7]
[426155974,1782191438000,-158.70246547,0.00015,7]
[426155971,1782191438000,-1080.51850575,0.00012,2]
[426155981,1782191439000,-348.99229801,0.00016986,2]
[426155978,1782191439000,-156.422,0.00016055,2]
[426155980,1782191439000,-348.99229801,0.00016577,2]
[426155979,1782191439000,-348.99229801,0.00016429,2]
[426155982,1782191439000,-249.28021286,0.00017048,7]
[426155983,1782191439000,-209.139193,0.00017144,2]
[426155977,1782191439000,-769.69606881,0.00016055,2]
[426155985,1782191439000,-220.962238,0.00018167,2]
[426155989,1782191439000,-604213.48099292,0.000186,2]
[426155984,1782191439000,-348.99229801,0.00017662,2]
[426155988,1782191439000,-363.82887133,0.00018599,2]
[426155987,1782191439000,-346.11724188,0.00018599,2]
[426155991,1782191439000,-2680.30210078,0.000186,2]
[426155990,1782191439000,-12619.66058645,0.000186,2]
[426155986,1782191439000,-348.99229801,0.000185,2]
[426156005,1782191440000,-38282.49232363,0.000186,2]
[426156007,1782191440000,-150.54758988,0.00018699,2]
[426156008,1782191440000,-508.07681785,0.00018699,2]
[426156009,1782191440000,-500.0,0.00018699,2]
[426156010,1782191440000,-500.0,0.00018699,2]
[426156006,1782191440000,-181.892,0.00018699,2]
[426156013,1782191440000,-500.0,0.00018799,2]
[426156012,1782191440000,-500.0,0.00018799,2]
[426156015,1782191440000,-500.92084631,0.00018799,2]
[426156014,1782191440000,-500.0,0.00018799,2]
[426156011,1782191440000,-151.0,0.000187,2]
[426156016,1782191440000,-14666.33306916,0.000188,2]
[426156207,1782191443000,-9321.89622839,0.000188,2]
[426156235,1782191446000,-348.0,0.000188,2]
[426156258,1782191672000,170.0,0.00023087,30]
[426156259,1782191751000,170.0,0.00023087,30]
[426156274,1782192241000,-151.0,0.0001106,7]
[426156330,1782192632000,-368.15318424,0.00016126,2]
[426156332,1782192632000,-344.90818705,0.00016126,2]
[426156326,1782192632000,-371.15294925,0.0001532,2]
[426156328,1782192632000,-322.4564927,0.00016126,2]
[426156324,1782192632000,-198.976135,0.00015012,2]
[426156317,1782192632000,-321.81975072,0.00011281,7]
[426156321,1782192632000,-321.81975072,0.00011945,7]
[426156313,1782192632000,-170.81975072,0.0001106,7]
[426156315,1782192632000,-154.68781384,0.0001106,7]
[426156319,1782192632000,-321.81975072,0.00011613,7]
[426156334,1782192632000,-184.135198,0.00016838,2]
[426156322,1782192632000,-321.81975073,0.00012387,7]
[426156340,1782192632000,-184.135198,0.00018256,2]
[426156355,1782192632000,-433.45811007,0.000186,2]
[426156338,1782192632000,-159.85,0.00018134,2]
[426156365,1782192632000,-3564.64415148,0.000186,2]
[426156342,1782192632000,-160.54,0.00018292,2]
[426156362,1782192632000,-1590.7716437,0.000186,2]
[426156360,1782192632000,-1785.5013805,0.000186,2]
[426156367,1782192632000,-317.69228247,0.000186,2]
[426156357,1782192632000,-5541.4689791,0.000186,2]
[426156351,1782192632000,-500.0,0.00018599,2]
[426156349,1782192632000,-242.28206931,0.00018599,2]
[426156346,1782192632000,-254.68020993,0.00018599,2]
[426156345,1782192632000,-291.0,0.00018598,2]
[426156336,1782192632000,-184.135198,0.00017547,2]
[426156353,1782192632000,-500.0,0.00018599,2]
[426156470,1782192639000,-52245.2369482,0.000186,2]
[426156456,1782192639000,-10600.41701886,0.000186,2]
[426156723,1782192641000,-1035.57396841,0.000186,2]
[426156694,1782192641000,-326.66937278,0.000186,2]
[426156701,1782192641000,-351.70476,0.000186,2]
[426156703,1782192641000,-19007.76883073,0.000186,2]
[426157044,1782192643000,-351.41676919,0.000186,2]
[426157046,1782192644000,-1692.57371227,0.000186,2]
[426157180,1782192647000,-34260.00000016,0.000186,2]
[426157183,1782192647000,-51907.82535532,0.000186,2]
[426157189,1782192647000,-482.45715856,0.000186,2]
[426157365,1782193831000,-500.0,0.00018699,2]
[426157337,1782193831000,-212.49397457,0.00015319,2]
[426157339,1782193831000,-379.07407249,0.00015319,2]
[426157340,1782193831000,-224.73320212,0.00016025,2]
[426157342,1782193831000,-467.81055794,0.00016878,2]
[426157338,1782193831000,-242.85025665,0.00015319,2]
[426157341,1782193831000,-259.89475441,0.00016878,2]
[426157343,1782193831000,-831.66321412,0.00016878,2]
[426157345,1782193831000,-1298.17429829,0.00017086,2]
[426157346,1782193831000,-261.44371561,0.000172,2]
[426157344,1782193831000,-1000.0,0.00016949,2]
[426157348,1782193831000,-757.8974748,0.00017441,2]
[426157349,1782193831000,-349.3668943,0.00017522,2]
[426157350,1782193831000,-164.68,0.00017626,2]
[426157347,1782193831000,-198.9761365,0.00017295,2]
[426157352,1782193831000,-184.45243362,0.00017767,2]
[426157364,1782193831000,-178.27614695,0.00018699,2]
[426157363,1782193831000,-240.18691189,0.00018699,2]
[426157362,1782193831000,-159.04377052,0.00018698,2]
[426157351,1782193831000,-236.76,0.00017748,2]
[426157358,1782193831000,-162.25645751,0.000186,2]
[426157353,1782193831000,-331.68236613,0.00017985,2]
[426157354,1782193831000,-351.6172416,0.00018537,2]
[426157359,1782193831000,-500.0,0.00018698,2]
[426157360,1782193831000,-280.63754669,0.00018698,2]
[426157361,1782193831000,-500.0,0.00018698,2]
[426157357,1782193831000,-155.02984757,0.000186,2]
[426157356,1782193831000,-501.181653,0.00018599,2]
[426157355,1782193831000,-537.59323682,0.00018599,2]
[426157371,1782193832000,-500.0,0.00018699,2]
[426157366,1782193832000,-501.47540124,0.00018699,2]
[426157368,1782193832000,-500.0,0.00018699,2]
[426157367,1782193832000,-500.0,0.00018699,2]
[426157369,1782193832000,-500.0,0.00018699,2]
[426157370,1782193832000,-500.0,0.00018699,2]
[426157372,1782193832000,-36.48337663,0.00018699,2]
[426157388,1782193832000,-272.12925013,0.00018699,2]
[426157375,1782193832000,-500.0,0.00018699,2]
[426157377,1782193832000,-500.0,0.00018699,2]
[426157379,1782193832000,-359.50501812,0.00018699,2]
[426157381,1782193832000,-270.69044643,0.00018699,2]
[426157385,1782193832000,-227.87074987,0.00018699,2]
[426157383,1782193832000,-229.30955357,0.00018699,2]
[426157390,1782193832000,-10886.47774987,0.000187,2]
[426157374,1782193832000,-463.51662337,0.00018699,2]
[426157413,1782193840000,-1500.16255644,0.000186,2]
[426157414,1782193840000,-764147.83520721,0.000187,2]
[426157504,1782193846000,-3960.65400525,0.000187,2]
[426157643,1782194018000,500.66987463,3e-05,7]
[426157649,1782194165000,10072.6970632,0.00023099,30]
[426157651,1782194255000,532.5699982,0.0001,2]
[426157653,1782194267000,172.58472263,9.5e-05,2]
[426157773,1782195032000,-219.52822135,0.00016,2]
[426157768,1782195032000,-1887.05918974,0.00014764,2]
[426157771,1782195032000,-589.45322038,0.00014913,2]
[426157769,1782195032000,-433.45811007,0.00014764,2]
[426157770,1782195032000,-718.20369502,0.00014764,2]
[426157772,1782195032000,-240.48182808,0.00015801,7]
[426157776,1782195032000,-187.43059074,0.00016876,2]
[426157774,1782195032000,-428.00890378,0.00016543,7]
[426157775,1782195032000,-586.8914962,0.00016759,2]
[426157782,1782195032000,-72.20610695,0.00017629,7]
[426157780,1782195032000,-317.36133108,0.00016904,7]
[426157779,1782195032000,-936.21580076,0.00016876,2]
[426157781,1782195032000,-154.0,0.00017629,7]
[426157777,1782195032000,-337.37506334,0.00016876,2]
[426157778,1782195032000,-599.77789038,0.00016876,2]
[426157810,1782195038000,-500.0,0.00018597,2]
[426157812,1782195038000,-500.0,0.00018597,2]
[426157811,1782195038000,-500.0,0.00018597,2]
[426157809,1782195038000,-689.91231017,0.00018503,2]
[426157813,1782195038000,-500.0,0.00018597,2]
[426157826,1782195038000,-500.0,0.00018598,2]
[426157827,1782195038000,-500.0,0.00018598,2]
[426157808,1782195038000,-3548.92655948,0.00018498,2]
[426157821,1782195038000,-500.0,0.00018597,2]
[426157816,1782195038000,-625.9913048,0.00018597,2]
[426157817,1782195038000,-500.0,0.00018597,2]
[426157807,1782195038000,-264.16,0.00018262,2]
[426157806,1782195038000,-1506.97839378,0.00018,2]
[426157805,1782195038000,-115904.18197763,0.00018,2]
[426157824,1782195038000,-500.0,0.00018598,2]
[426157804,1782195038000,-730612.3808694,0.000178,2]
[426157803,1782195038000,-4650.76659384,0.000178,2]
[426157814,1782195038000,-500.0,0.00018597,2]
[426157801,1782195038000,-881.29306294,0.00017764,2]
[426157800,1782195038000,-495.7273479,0.00017764,2]
[426157799,1782195038000,-275.40408217,0.00017764,2]
[426157802,1782195038000,-1375.64339043,0.00017764,2]
[426157798,1782195038000,-720.56459941,0.00017672,2]
[426157797,1782195038000,-282.50890946,0.00017672,2]
[426157815,1782195038000,-500.0,0.00018597,2]
[426157822,1782195038000,-505.17335309,0.00018598,2]
[426157796,1782195038000,-81.79389305,0.00017629,7]
[426157819,1782195038000,-500.0,0.00018597,2]
[426157818,1782195038000,-500.0,0.00018597,2]
[426157850,1782195038000,-500.0,0.00018698,2]
[426157843,1782195038000,-500.0,0.00018598,2]
[426157846,1782195038000,-281.90207062,0.00018598,2]
[426157847,1782195038000,-150.76206096,0.00018598,2]
[426157849,1782195038000,-3501.37379443,0.00018692,2]
[426157844,1782195038000,-1374.62,0.00018598,2]
[426157845,1782195038000,-500.0,0.00018598,2]
[426157842,1782195038000,-500.0,0.00018598,2]
[426157839,1782195038000,-500.0,0.00018598,2]
[426157835,1782195038000,-500.0,0.00018598,2]
[426157837,1782195038000,-500.0,0.00018598,2]
[426157838,1782195038000,-500.0,0.00018598,2]
[426157848,1782195038000,-161.7217827,0.00018675,2]
[426157834,1782195038000,-500.0,0.00018598,2]
[426157836,1782195038000,-500.0,0.00018598,2]
[426157823,1782195038000,-539.49924728,0.00018598,2]
[426157828,1782195038000,-500.0,0.00018598,2]
[426157825,1782195038000,-500.0,0.00018598,2]
[426157840,1782195038000,-500.0,0.00018598,2]
[426157820,1782195038000,-500.0,0.00018597,2]
[426157830,1782195038000,-500.0,0.00018598,2]
[426157829,1782195038000,-500.0,0.00018598,2]
[426157831,1782195038000,-337.8887684,0.00018598,2]
[426157832,1782195038000,-500.0,0.00018598,2]
[426157833,1782195038000,-500.0,0.00018598,2]
[426157841,1782195038000,-500.0,0.00018598,2]
[426157884,1782195039000,-513.05032807,0.00018698,2]
[426157891,1782195039000,-567.68907114,0.00018698,2]
[426157888,1782195039000,-500.0,0.00018698,2]
[426157882,1782195039000,-500.0,0.00018698,2]
[426157880,1782195039000,-510.38654806,0.00018698,2]
[426157885,1782195039000,-528.35105559,0.00018698,2]
[426157887,1782195039000,-500.0,0.00018698,2]
[426157883,1782195039000,-500.0,0.00018698,2]
[426157881,1782195039000,-500.0,0.00018698,2]
[426157889,1782195039000,-500.0,0.00018698,2]
[426157886,1782195039000,-500.0,0.00018698,2]
[426157894,1782195039000,-514.7683376,0.00018698,2]
[426157898,1782195039000,-500.0,0.00018698,2]
[426157897,1782195039000,-500.0,0.00018698,2]
[426157896,1782195039000,-500.0,0.00018698,2]
[426157899,1782195039000,-500.0,0.00018698,2]
[426157895,1782195039000,-500.0,0.00018698,2]
[426157902,1782195039000,-528.72521038,0.00018698,2]
[426157900,1782195039000,-500.0,0.00018698,2]
[426157907,1782195039000,-510.00078812,0.00018698,2]
[426157903,1782195039000,-316.23101213,0.00018698,2]
[426157905,1782195039000,-500.0,0.00018698,2]
[426157904,1782195039000,-510.21091648,0.00018698,2]
[426157912,1782195039000,-500.0,0.00018698,2]
[426157878,1782195039000,-500.0,0.00018698,2]
[426157901,1782195039000,-500.0,0.00018698,2]
[426157892,1782195039000,-509.37362533,0.00018698,2]
[426157890,1782195039000,-500.0,0.00018698,2]
[426157862,1782195039000,-500.0,0.00018698,2]
[426157877,1782195039000,-500.0,0.00018698,2]
[426157908,1782195039000,-500.0,0.00018698,2]
[426157852,1782195039000,-521.44053227,0.00018698,2]
[426157851,1782195039000,-500.0,0.00018698,2]
[426157853,1782195039000,-511.46986727,0.00018698,2]
[426157855,1782195039000,-500.0,0.00018698,2]
[426157865,1782195039000,-500.0,0.00018698,2]
[426157857,1782195039000,-500.0,0.00018698,2]
[426157856,1782195039000,-516.85566395,0.00018698,2]
[426157854,1782195039000,-518.07520966,0.00018698,2]
[426157859,1782195039000,-513.80138669,0.00018698,2]
[426157864,1782195039000,-500.0,0.00018698,2]
[426157863,1782195039000,-500.0,0.00018698,2]
[426157879,1782195039000,-500.0,0.00018698,2]
[426157861,1782195039000,-513.96248832,0.00018698,2]
[426157858,1782195039000,-500.0,0.00018698,2]
[426157866,1782195039000,-500.0,0.00018698,2]
[426157868,1782195039000,-500.0,0.00018698,2]
[426157867,1782195039000,-500.0,0.00018698,2]
[426157869,1782195039000,-500.0,0.00018698,2]
[426157870,1782195039000,-500.0,0.00018698,2]
[426157872,1782195039000,-500.0,0.00018698,2]
[426157871,1782195039000,-1000.0,0.00018698,2]
[426157873,1782195039000,-500.0,0.00018698,2]
[426157874,1782195039000,-368.66731003,0.00018698,2]
[426157875,1782195039000,-526.70010882,0.00018698,2]
[426157876,1782195039000,-500.0,0.00018698,2]
[426157860,1782195039000,-500.0,0.00018698,2]
[426157910,1782195039000,-500.0,0.00018698,2]
[426157906,1782195039000,-500.0,0.00018698,2]
[426157911,1782195039000,-500.0,0.00018698,2]
[426157950,1782195039000,-509.32666969,0.00018698,2]
[426157944,1782195039000,-500.0,0.00018698,2]
[426157941,1782195039000,-500.0,0.00018698,2]
[426157939,1782195039000,-500.0,0.00018698,2]
[426157940,1782195039000,-500.0,0.00018698,2]
[426157937,1782195039000,-516.27422182,0.00018698,2]
[426157942,1782195039000,-500.0,0.00018698,2]
[426157943,1782195039000,-500.0,0.00018698,2]
[426157957,1782195039000,-515.42138441,0.00018698,2]
[426157953,1782195039000,-517.2954034,0.00018698,2]
[426157959,1782195039000,-500.0,0.00018698,2]
[426157962,1782195039000,-500.0,0.00018699,2]
[426157951,1782195039000,-500.0,0.00018698,2]
[426157954,1782195039000,-500.0,0.00018698,2]
[426157973,1782195039000,-500.0,0.00018699,2]
[426157965,1782195039000,-197.00156438,0.00018699,2]
[426157975,1782195039000,-502.20811673,0.00018699,2]
[426157968,1782195039000,-500.0,0.00018699,2]
[426157971,1782195039000,-279.88685592,0.00018699,2]
[426157969,1782195039000,-155.49269773,0.00018699,2]
[426157977,1782195039000,-512.80513418,0.00018699,2]
[426157983,1782195039000,-500.0,0.00018699,2]
[426157984,1782195039000,-500.0,0.00018699,2]
[426157981,1782195039000,-520.95953793,0.00018699,2]
[426157986,1782195039000,-500.0,0.00018699,2]
[426157979,1782195039000,-501.97,0.00018699,2]
[426157956,1782195039000,-339.49793757,0.00018698,2]
[426157949,1782195039000,-511.0235058,0.00018698,2]
[426157955,1782195039000,-500.0,0.00018698,2]
[426157952,1782195039000,-500.0,0.00018698,2]
[426157948,1782195039000,-500.0,0.00018698,2]
[426157909,1782195039000,-500.0,0.00018698,2]
[426157913,1782195039000,-513.60185796,0.00018698,2]
[426157924,1782195039000,-500.0,0.00018698,2]
[426157914,1782195039000,-500.0,0.00018698,2]
[426157917,1782195039000,-560.36681175,0.00018698,2]
[426157915,1782195039000,-500.0,0.00018698,2]
[426157916,1782195039000,-508.61644466,0.00018698,2]
[426157918,1782195039000,-518.25401357,0.00018698,2]
[426157923,1782195039000,-500.0,0.00018698,2]